fUSD/lending_fUSD_20250811
["ID","MTS","AMOUNT","RATE_DAILY","PERIOD"]
[378552074,1754911851752,-1374.31,0.00016627,2]
[378552076,1754911851761,-7819.97,0.00016627,2]
[378552078,1754911851770,-400.0,0.00016627,2]
[378552080,1754911851779,-400.0,0.00016627,2]
[378552081,1754911851788,-400.0,0.00016627,2]
[378552083,1754911851797,-400.0,0.00016627,2]
[378552085,1754911851809,-530.78,0.00016627,2]
[378552087,1754911851823,-1494.19,0.00016627,2]
[378552089,1754911851832,-500.0,0.00016627,2]
[378552091,1754911851841,-845.71,0.00016627,2]
[378552093,1754911851850,-7698.13,0.00016627,2]
[378552095,1754911851861,-400.0,0.00016627,2]
[378552097,1754911851871,-500.0,0.00016627,2]
[378552099,1754911851881,-500.0,0.00016627,2]
[378552100,1754911851892,-151.0,0.00016628,2]
[378552102,1754911851902,-400.0,0.00016628,2]
[378552104,1754911851911,-577.21,0.00016628,2]
[378552106,1754911851921,-400.0,0.00016628,2]
[378552108,1754911851931,-400.0,0.00016628,2]
[378552110,1754911851940,-151.0,0.00016628,2]
[378552112,1754911851949,-400.0,0.00016628,2]
[378552114,1754911851958,-242.38168589,0.00016628,2]
[378552116,1754911851967,-151.0,0.00016628,2]
[378552117,1754911851977,-778.36,0.00016628,2]
[378552118,1754911851987,-400.0,0.00016628,2]
[378552119,1754911851996,-402.752787,0.00016628,2]
[378552120,1754911852007,-400.0,0.00016628,2]
[378552121,1754911852016,-402.752787,0.00016628,2]
[378552122,1754911852026,-400.0,0.00016628,2]
[378552123,1754911852039,-400.0,0.00016628,2]
[378552124,1754911852049,-498.52,0.00016628,2]
[378552125,1754911852058,-405.0,0.00016628,2]
[378552126,1754911852070,-151.0,0.00016628,2]
[378552127,1754911852082,-698.232335,0.00016628,2]
[378552128,1754911852091,-400.0,0.00016628,2]
[378552129,1754911852101,-698.232335,0.00016628,2]
[378552130,1754911852110,-400.0,0.00016628,2]
[378552131,1754911852120,-220.50155571,0.00016628,2]
[378552132,1754911852129,-194.11736201,0.00016628,2]
[378552133,1754911852139,-400.0,0.00016628,2]
[378552134,1754911852148,-619.04,0.00016628,2]
[378552135,1754911852158,-400.0,0.00016628,2]
[378552136,1754911852167,-400.0,0.00016628,2]
[378552137,1754911852176,-400.0,0.00016628,2]
[378552138,1754911852186,-400.0,0.00016628,2]
[378552139,1754911852195,-400.0,0.00016628,2]
[378552140,1754911852204,-893.77,0.00016628,2]
[378552141,1754911852214,-400.0,0.00016628,2]
[378552142,1754911852223,-408.9900448,0.00016628,2]
[378552144,1754911852233,-400.0,0.00016628,2]
[378552146,1754911852242,-400.0,0.00016628,2]
[378552148,1754911852252,-400.0,0.00016628,2]
[378552150,1754911852261,-400.0,0.00016628,2]
[378552152,1754911852271,-428.72,0.00016628,2]
[378552154,1754911852280,-400.0,0.00016628,2]
[378552156,1754911852290,-400.0,0.00016628,2]
[378552158,1754911852299,-400.0,0.00016628,2]
[378552160,1754911852308,-190.56794355,0.00016628,2]
[378552162,1754911852317,-506.21,0.00016628,2]
[378552164,1754911852329,-400.0,0.00016628,2]
[378552166,1754911852338,-400.0,0.00016628,2]
[378552168,1754911852347,-400.0,0.00016628,2]
[378552170,1754911852357,-564.19,0.00016628,2]
[378552172,1754911852367,-729.68,0.00016628,2]
[378552174,1754911852376,-705.38,0.00016628,2]
[378552176,1754911852385,-400.0,0.00016628,2]
[378552178,1754911852395,-406.07,0.00016628,2]
[378552180,1754911852404,-400.0,0.00016628,2]
[378552182,1754911852413,-459.54,0.00016628,2]
[378552184,1754911852422,-400.0,0.00016628,2]
[378552186,1754911852432,-547.0,0.00016628,2]
[378552188,1754911852441,-401.85018848,0.00016628,2]
[378552190,1754911852450,-520.97,0.00016628,2]
[378552191,1754911852459,-991.77,0.00016628,2]
[378552193,1754911852468,-400.0,0.00016628,2]
[378552195,1754911852477,-400.0,0.00016628,2]
[378552197,1754911852487,-256.18825381,0.00016628,2]
[378552199,1754911852497,-500.0,0.00016628,2]
[378552201,1754911852506,-500.0,0.00016628,2]
[378552203,1754911852516,-400.0,0.00016628,2]
[378552205,1754911852526,-408.45,0.00016628,2]
[378552207,1754911852536,-402.7498216,0.00016628,2]
[378552209,1754911852546,-400.0,0.00016628,2]
[378552211,1754911852555,-400.0,0.00016628,2]
[378552213,1754911852564,-400.0,0.00016628,2]
[378552215,1754911852576,-400.0,0.00016628,2]
[378552218,1754911852587,-400.0,0.00016628,2]
[378552219,1754911852595,-561.51270666,0.00016628,2]
[378552298,1754911853352,-183.85729334,0.00016628,2]
[378552299,1754911853362,-400.0,0.00016628,2]
[378552301,1754911853371,-88.01299546,0.00016628,2]
[378552304,1754911853383,-311.98700454,0.00016628,2]
[378552305,1754911853393,-509.12,0.00016628,2]
[378552307,1754911853402,-354.31952994,0.00016628,2]
[378552309,1754911853414,-466.32047006,0.00016628,2]
[378552311,1754911853423,-400.0,0.00016628,2]
[378552313,1754911853432,-556.14,0.00016628,2]
[378552315,1754911853442,-975.42,0.00016628,2]
[378552317,1754911853451,-400.0,0.00016628,2]
[378552319,1754911853460,-325.32146282,0.00016628,2]
[378552321,1754911853469,-1111.77,0.00016628,2]
[378552323,1754911853478,-555.65,0.00016628,2]
[378552325,1754911853486,-400.0,0.00016628,2]
[378552327,1754911853495,-400.0,0.00016628,2]
[378552329,1754911853504,-400.0,0.00016628,2]
[378552331,1754911853513,-2880.08,0.00016628,2]
[378552333,1754911853522,-2741.17,0.00016628,2]
[378552335,1754911853531,-414.50785657,0.00016628,2]
[378552337,1754911853540,-400.0,0.00016628,2]
[378552339,1754911853549,-157.37085785,0.00016628,2]
[378552342,1754911853568,-244.02617244,0.00016628,2]
[378552344,1754911853579,-512.21,0.00016628,2]
[378552345,1754911853587,-1248.19,0.00016628,2]
[378552347,1754911853596,-423.32,0.00016628,2]
[378552349,1754911853604,-218.25382856,0.00016628,2]
[378552351,1754911853615,-281.74617144,0.00016628,2]
[378552353,1754911853623,-400.0,0.00016628,2]
[378552355,1754911853633,-400.0,0.00016628,2]
[378552357,1754911853642,-400.0,0.00016628,2]
[378552359,1754911853651,-400.0,0.00016628,2]
[378552361,1754911853660,-185.41835359,0.00016628,2]
[378552363,1754911853670,-597.38,0.00016628,2]
[378552365,1754911853678,-1383.19,0.00016628,2]
[378552367,1754911853688,-1556.98547482,0.00016628,2]
[378552369,1754911853699,-560.68452518,0.00016628,2]
[378552371,1754911853707,-500.0,0.00016628,2]
[378552373,1754911853717,-400.0,0.00016628,2]
[378552375,1754911853726,-401.77284647,0.00016628,2]
[378552377,1754911853735,-400.0,0.00016628,2]
[378552379,1754911853744,-1328.35,0.00016628,2]
[378552380,1754911853755,-400.0,0.00016628,2]
[378552382,1754911853763,-2336.94262835,0.00016628,2]
[378552385,1754911853775,-330.35737165,0.00016628,2]
[378552387,1754911853783,-400.0,0.00016628,2]
[378552388,1754911853793,-26.14339299,0.00016628,2]
[378552439,1754911854291,-427.39638274,0.00016625,2]
[378552462,1754911854496,-27.61419767,0.00016625,2]
[378552464,1754911854506,-373.85660701,0.00016628,2]
[378552466,1754911854515,-424.10434915,0.00016628,2]
[378552468,1754911854524,-29.36090129,0.00016628,2]
[378552471,1754911854586,-370.63909871,0.00016628,2]
[378552472,1754911854595,-400.0,0.00016628,2]
[378552473,1754911854605,-1895.29,0.00016628,2]
[378552474,1754911854614,-1008.81,0.00016628,2]
[378552475,1754911854623,-402.80371168,0.00016628,2]
[378552476,1754911854633,-400.0,0.00016628,2]
[378552478,1754911854642,-400.0,0.00016628,2]
[378552480,1754911854651,-400.0,0.00016628,2]
[378552482,1754911854660,-598.17,0.00016628,2]
[378552484,1754911854670,-400.0,0.00016628,2]
[378552486,1754911854679,-400.0,0.00016628,2]
[378552488,1754911854688,-400.0,0.00016628,2]
[378552490,1754911854698,-400.0,0.00016628,2]
[378552492,1754911854707,-400.0,0.00016628,2]
[378552494,1754911854716,-403.22294155,0.00016628,2]
[378552496,1754911854726,-400.0,0.00016628,2]
[378552498,1754911854735,-400.0,0.00016628,2]
[378552500,1754911854744,-400.0,0.00016628,2]
[378552502,1754911854754,-1408.18,0.00016628,2]
[378552504,1754911854762,-584.74,0.00016628,2]
[378552506,1754911854772,-762.61,0.00016628,2]
[378552508,1754911854781,-645.3,0.00016628,2]
[378552510,1754911854791,-472.9,0.00016628,2]
[378552512,1754911854800,-401.58753099,0.00016628,2]
[378552514,1754911854809,-551.64,0.00016628,2]
[378552516,1754911854820,-400.0,0.00016628,2]
[378552518,1754911854831,-400.0,0.00016628,2]
[378552521,1754911854841,-400.0,0.00016628,2]
[378552522,1754911854851,-400.0,0.00016628,2]
[378552524,1754911854861,-400.0,0.00016628,2]
[378552526,1754911854870,-400.0,0.00016628,2]
[378552528,1754911854880,-751.86,0.00016628,2]
[378552530,1754911854890,-2031.17,0.00016628,2]
[378552532,1754911854900,-861.83,0.00016628,2]
[378552534,1754911854910,-776.27,0.00016628,2]
[378552536,1754911854920,-400.0,0.00016628,2]
[378552538,1754911854929,-1236.73,0.00016628,2]
[378552540,1754911854939,-400.0,0.00016628,2]
[378552542,1754911854948,-400.0,0.00016628,2]
[378552544,1754911854959,-504.79,0.00016628,2]
[378552547,1754911854969,-500.0,0.00016628,2]
[378552549,1754911854978,-400.0,0.00016628,2]
[378552551,1754911854989,-748.38,0.00016628,2]
[378552553,1754911854998,-400.0,0.00016628,2]
[378552555,1754911855008,-555.03,0.00016628,2]
[378552557,1754911855018,-400.0,0.00016628,2]
[378552559,1754911855027,-400.0,0.00016628,2]
[378552561,1754911855037,-400.0,0.00016628,2]
[378552563,1754911855046,-500.0,0.00016628,2]
[378552565,1754911855055,-655.66,0.00016628,2]
[378552567,1754911855065,-400.0,0.00016628,2]
[378552569,1754911855074,-400.0,0.00016628,2]
[378552571,1754911855084,-400.0,0.00016628,2]
[378552573,1754911855094,-1048.52,0.00016628,2]
[378552575,1754911855103,-771.96,0.00016628,2]
[378552577,1754911855112,-1091.01,0.00016628,2]
[378552579,1754911855121,-400.0,0.00016628,2]
[378552581,1754911855130,-618.5,0.00016628,2]
[378552583,1754911855139,-400.0,0.00016628,2]
[378552585,1754911855148,-400.0,0.00016628,2]
[378552587,1754911855157,-402.94133645,0.00016628,2]
[378552589,1754911855166,-400.0,0.00016628,2]
[378552591,1754911855175,-886.95,0.00016628,2]
[378552593,1754911855185,-1259.95,0.00016628,2]
[378552595,1754911855194,-1137.41,0.00016628,2]
[378552597,1754911855203,-402.31246902,0.00016628,2]
[378552599,1754911855212,-402.43817097,0.00016628,2]
[378552601,1754911855221,-500.0,0.00016628,2]
[378552603,1754911855231,-400.0,0.00016628,2]
[378552605,1754911855239,-400.0,0.00016628,2]
[378552607,1754911855249,-269.66794463,0.00016628,2]
[378552609,1754911855258,-1061.29,0.00016628,2]
[378552611,1754911855267,-400.0,0.00016628,2]
[378552613,1754911855277,-400.0,0.00016628,2]
[378552615,1754911855286,-1969.22,0.00016628,2]
[378552617,1754911855295,-400.0,0.00016628,2]
[378552619,1754911855304,-400.0,0.00016628,2]
[378552621,1754911855313,-840.53,0.00016628,2]
[378552623,1754911855322,-400.0,0.00016628,2]
[378552625,1754911855332,-930.27,0.00016628,2]
[378552627,1754911855342,-1003.88,0.00016628,2]
[378552629,1754911855351,-400.0,0.00016628,2]
[378552631,1754911855360,-808.27,0.00016628,2]
[378552633,1754911855369,-1603.27,0.00016628,2]
[378552635,1754911855379,-400.0,0.00016628,2]
[378552637,1754911855388,-400.0,0.00016628,2]
[378552638,1754911855396,-400.0,0.00016628,2]
[378552640,1754911855405,-400.0,0.00016628,2]
[378552642,1754911855415,-400.0,0.00016628,2]
[378552644,1754911855423,-400.0,0.00016628,2]
[378552647,1754911855437,-744.24,0.00016628,2]
[378552648,1754911855446,-400.0,0.00016628,2]
[378552651,1754911855455,-493.94,0.00016628,2]
[378552652,1754911855465,-400.0,0.00016628,2]
[378552655,1754911855476,-400.0,0.00016628,2]
[378552657,1754911855485,-848.95,0.00016628,2]
[378552659,1754911855495,-1064.92,0.00016628,2]
[378552661,1754911855503,-956.31,0.00016628,2]
[378552663,1754911855513,-400.0,0.00016628,2]
[378552665,1754911855522,-930.83,0.00016628,2]
[378552667,1754911855531,-400.0,0.00016628,2]
[378552668,1754911855541,-2218.45,0.00016628,2]
[378552670,1754911855550,-400.0,0.00016628,2]
[378552672,1754911855560,-1691.56,0.00016628,2]
[378552674,1754911855569,-400.0,0.00016628,2]
[378552676,1754911855580,-400.0,0.00016628,2]
[378552679,1754911855592,-400.0,0.00016628,2]
[378552680,1754911855601,-1288.39,0.00016628,2]
[378552682,1754911855610,-400.0,0.00016628,2]
[378552684,1754911855619,-400.0,0.00016628,2]
[378552686,1754911855628,-400.0,0.00016628,2]
[378552688,1754911855637,-400.0,0.00016628,2]
[378552690,1754911855647,-400.0,0.00016628,2]
[378552692,1754911855655,-400.0,0.00016628,2]
[378552694,1754911855665,-400.0,0.00016628,2]
[378552696,1754911855673,-400.0,0.00016628,2]
[378552698,1754911855683,-400.0,0.00016628,2]
[378552700,1754911855692,-1903.94,0.00016628,2]
[378552702,1754911855701,-1231.53,0.00016628,2]
[378552704,1754911855710,-400.0,0.00016628,2]
[378552706,1754911855720,-586.06,0.00016628,2]
[378552708,1754911855729,-500.0,0.00016628,2]
[378552710,1754911855738,-909.02,0.00016628,2]
[378552712,1754911855747,-521.94345069,0.00016628,2]
[378552714,1754911855756,-679.08,0.00016628,2]
[378552715,1754911855766,-400.0,0.00016628,2]
[378552717,1754911855775,-400.0,0.00016628,2]
[378552719,1754911855785,-493.82,0.00016628,2]
[378552721,1754911855794,-513.79,0.00016628,2]
[378552723,1754911855804,-400.0,0.00016628,2]
[378552725,1754911855814,-2822.91,0.00016628,2]
[378552727,1754911855828,-2367.21,0.00016628,2]
[378552729,1754911855838,-400.0,0.00016628,2]
[378552731,1754911855847,-151.0,0.00016628,2]
[378552734,1754911855858,-1194.92,0.00016628,2]
[378552736,1754911855868,-400.0,0.00016628,2]
[378552738,1754911855878,-151.0,0.00016628,2]
[378552740,1754911855887,-1660.73,0.00016628,2]
[378552742,1754911855900,-400.0,0.00016628,2]
[378552744,1754911855910,-400.0,0.00016628,2]
[378552746,1754911855919,-400.0,0.00016628,2]
[378552748,1754911855928,-776.36,0.00016628,2]
[378552750,1754911855938,-400.0,0.00016628,2]
[378552752,1754911855948,-400.0,0.00016628,2]
[378552754,1754911855958,-412.68720675,0.00016628,2]
[378552756,1754911855968,-400.0,0.00016628,2]
[378552758,1754911855977,-500.0,0.00016628,2]
[378552760,1754911855988,-470.56456488,0.00016628,2]
[378552762,1754911855998,-400.0,0.00016628,2]
[378552764,1754911856008,-1507.02,0.00016628,2]
[378552766,1754911856017,-400.0,0.00016628,2]
[378552768,1754911856027,-936.48,0.00016628,2]
[378552770,1754911856037,-1242.63,0.00016628,2]
[378552772,1754911856046,-278.24052533,0.00016628,2]
[378552774,1754911856056,-1093.85,0.00016628,2]
[378552776,1754911856066,-400.0,0.00016628,2]
[378552778,1754911856076,-2268.31,0.00016628,2]
[378552780,1754911856088,-400.0,0.00016628,2]
[378552782,1754911856098,-400.0,0.00016628,2]
[378552784,1754911856108,-1680.79,0.00016628,2]
[378552786,1754911856118,-400.0,0.00016628,2]
[378552788,1754911856127,-400.0,0.00016628,2]
[378552790,1754911856136,-2730.56,0.00016628,2]
[378552792,1754911856146,-936.78,0.00016628,2]
[378552794,1754911856155,-1384.8,0.00016628,2]
[378552796,1754911856164,-400.0,0.00016628,2]
[378552798,1754911856174,-2062.01,0.00016628,2]
[378552800,1754911856184,-400.0,0.00016628,2]
[378552802,1754911856194,-266.2,0.00016628,2]
[378552804,1754911856204,-42942.29802553,0.00016628,2]
[378552806,1754911856214,-2490.7,0.00016628,2]
[378552809,1754911856223,-400.0,0.00016628,2]
[378552811,1754911856233,-400.0,0.00016628,2]
[378552813,1754911856243,-400.0,0.00016628,2]
[378552815,1754911856254,-400.0,0.00016628,2]
[378552817,1754911856264,-1707.71,0.00016628,2]
[378552819,1754911856273,-842.46,0.00016628,2]
[378552821,1754911856282,-400.0,0.00016628,2]
[378552823,1754911856294,-1253.107716,0.00016628,2]
[378552825,1754911856303,-400.0,0.00016628,2]
[378552827,1754911856312,-736.35,0.00016628,2]
[378552829,1754911856321,-1253.107716,0.00016628,2]
[378552831,1754911856333,-400.0,0.00016628,2]
[378552833,1754911856342,-400.0,0.00016628,2]
[378552835,1754911856352,-400.0,0.00016628,2]
[378552837,1754911856362,-404.67624412,0.00016628,2]
[378552839,1754911856371,-400.0,0.00016628,2]
[378552841,1754911856380,-832.17,0.00016628,2]
[378552843,1754911856390,-835.13,0.00016628,2]
[378552845,1754911856399,-401.49220888,0.00016628,2]
[378552847,1754911856409,-624.75,0.00016628,2]
[378552849,1754911856418,-1217.01,0.00016628,2]
[378552851,1754911856428,-484.49,0.00016628,2]
[378552853,1754911856437,-1819.76,0.00016628,2]
[378552855,1754911856447,-400.0,0.00016628,2]
[378552858,1754911856456,-400.0,0.00016628,2]
[378552860,1754911856466,-1407.48,0.00016628,2]
[378552862,1754911856476,-400.0,0.00016628,2]
[378552864,1754911856485,-1202.24,0.00016628,2]
[378552866,1754911856494,-1444.23,0.00016628,2]
[378552868,1754911856504,-400.0,0.00016628,2]
[378552870,1754911856513,-1093.09,0.00016628,2]
[378552872,1754911856522,-400.0,0.00016628,2]
[378552874,1754911856532,-1637.08,0.00016628,2]
[378552876,1754911856541,-988.56,0.00016628,2]
[378552878,1754911856550,-1082.11,0.00016628,2]
[378552880,1754911856560,-1048.4,0.00016628,2]
[378552882,1754911856569,-2968.9,0.00016628,2]
[378552884,1754911856579,-567.23,0.00016628,2]
[378552886,1754911856589,-1048.866293,0.00016628,2]
[378552888,1754911856599,-1772.07,0.00016628,2]
[378552890,1754911856608,-500.0,0.00016628,2]
[378552892,1754911856620,-1048.866293,0.00016628,2]
[378552894,1754911856629,-2393.13,0.00016628,2]
[378552896,1754911856638,-2765.11,0.00016628,2]
[378552898,1754911856649,-2208.98,0.00016628,2]
[378552900,1754911856659,-1166.0,0.00016628,2]
[378552902,1754911856669,-948.78,0.00016628,2]
[378552904,1754911856679,-1183.32,0.00016628,2]
[378552906,1754911856688,-1312.17,0.00016628,2]
[378552908,1754911856698,-689.47,0.00016628,2]
[378552910,1754911856707,-151.0,0.00016628,2]
[378552912,1754911856717,-151.0,0.00016628,2]
[378552914,1754911856727,-2052.51,0.00016628,2]
[378552916,1754911856736,-400.0,0.00016628,2]
[378552918,1754911856746,-167.65837,0.00016628,2]
[378552920,1754911856755,-805.64,0.00016628,2]
[378552922,1754911856765,-489.29,0.00016628,2]
[378552924,1754911856774,-4136.64,0.00016628,2]
[378552926,1754911856784,-151.0,0.00016629,2]
[378552928,1754911856793,-1278.286218,0.00016629,2]
[378552930,1754911856803,-1278.286218,0.00016629,2]
[378552932,1754911856813,-400.0,0.00016629,2]
[378552934,1754911856825,-554.02,0.00016629,2]
[378552936,1754911856837,-641.57,0.00016629,2]
[378552938,1754911856847,-481.07,0.00016629,2]
[378552940,1754911856856,-900.545503,0.00016629,2]
[378552942,1754911856867,-1182.126922,0.00016629,2]
[378552945,1754911856878,-151.0,0.00016629,2]
[378552947,1754911856888,-1182.126922,0.00016629,2]
[378552949,1754911856899,-900.545503,0.00016629,2]
[378552951,1754911856908,-1182.126922,0.00016629,2]
[378552953,1754911856918,-151.0,0.00016629,2]
[378552955,1754911856927,-1182.126922,0.00016629,2]
[378552957,1754911856937,-400.0,0.00016629,2]
[378552959,1754911856946,-294.57622147,0.00016629,2]
[378552961,1754911856956,-402.752787,0.00016629,2]
[378552963,1754911856965,-402.752787,0.00016629,2]
[378552965,1754911856975,-466.71,0.00016629,2]
[378552967,1754911856985,-1183.01629,0.00016629,2]
[378552968,1754911856994,-1183.01629,0.00016629,2]
[378552970,1754911857004,-400.0,0.00016629,2]
[378552972,1754911857014,-400.0,0.00016629,2]
[378552974,1754911857023,-400.0,0.00016629,2]
[378552976,1754911857033,-262.074457,0.00016629,2]
[378552978,1754911857042,-698.232335,0.00016629,2]
[378552980,1754911857052,-400.0,0.00016629,2]
[378552982,1754911857063,-698.232335,0.00016629,2]
[378552984,1754911857073,-400.0,0.00016629,2]
[378552986,1754911857087,-400.0,0.00016629,2]
[378552988,1754911857096,-400.0,0.00016629,2]
[378552990,1754911857106,-401.25535596,0.00016629,2]
[378552992,1754911857115,-417.42,0.00016629,2]
[378552994,1754911857125,-400.0,0.00016629,2]
[378552996,1754911857135,-755.0,0.00016629,2]
[378552998,1754911857151,-400.0,0.00016629,2]
[378553000,1754911857162,-3528.785897,0.00016629,2]
[378553001,1754911857171,-3528.785897,0.00016629,2]
[378553003,1754911857182,-817.090114,0.00016629,2]
[378553005,1754911857192,-817.090114,0.00016629,2]
[378553007,1754911857202,-215.361666,0.00016629,2]
[378553009,1754911857211,-1251.129203,0.00016629,2]
[378553011,1754911857220,-1251.129203,0.00016629,2]
[378553013,1754911857230,-586.841379,0.00016629,2]
[378553015,1754911857239,-586.841379,0.00016629,2]
[378553017,1754911857248,-151.0,0.00016629,2]
[378553061,1754911857665,-151.0,0.00016629,2]
[378553063,1754911857675,-2216.26,0.00016629,2]
[378553065,1754911857686,-1646.262048,0.00016629,2]
[378553067,1754911857695,-1646.262048,0.00016629,2]
[378553069,1754911857704,-2175.71,0.00016629,2]
[378553071,1754911857713,-3855.06,0.00016629,2]
[378553073,1754911857725,-1253.107716,0.00016629,2]
[378553075,1754911857734,-10000.0,0.00016629,2]
[378553077,1754911857743,-1253.107716,0.00016629,2]
[378553079,1754911857753,-10000.0,0.00016629,2]
[378553081,1754911857763,-10000.0,0.00016629,2]
[378553083,1754911857772,-151.0,0.00016629,2]
[378553085,1754911857782,-10000.0,0.00016629,2]
[378553087,1754911857791,-155.002544,0.00016629,2]
[378553089,1754911857800,-379.164322,0.00016629,2]
[378553090,1754911857810,-379.164322,0.00016629,2]
[378553092,1754911857824,-1048.866293,0.00016629,2]
[378553095,1754911857836,-1048.866293,0.00016629,2]
[378553097,1754911857846,-166.66666665,0.0001663,2]
[378553098,1754911857856,-500.0,0.0001663,2]
[378553100,1754911857866,-500.0,0.0001663,2]
[378553102,1754911857876,-1680.0,0.00016631,2]
[378553104,1754911857885,-500.0,0.00016634,2]
[378553106,1754911857895,-2500.0,0.00016634,2]
[378553108,1754911857905,-1000.0,0.00016634,5]
[378553110,1754911857914,-500.0,0.00016634,2]
[378553112,1754911857924,-2500.0,0.00016634,2]
[378553114,1754911857933,-1000.0,0.00016634,5]
[378553116,1754911857943,-300.0,0.00016634,2]
[378553118,1754911857952,-300.0,0.00016634,2]
[378553120,1754911857962,-250.0,0.00016634,2]
[378553122,1754911857971,-300.0,0.00016635,2]
[378553124,1754911857981,-500.0,0.00016646,2]
[378553125,1754911857990,-1278.286218,0.00016647,2]
[378553127,1754911857999,-1278.286218,0.00016647,2]
[378553129,1754911858011,-900.545503,0.00016647,2]
[378553132,1754911858021,-900.545503,0.00016647,2]
[378553134,1754911858031,-619.04,0.00016647,2]
[378553135,1754911858041,-500.0,0.00016647,2]
[378553137,1754911858050,-500.0,0.00016647,2]
[378553139,1754911858060,-3528.785897,0.00016647,2]
[378553141,1754911858070,-3528.785897,0.00016647,2]
[378553143,1754911858081,-745.37,0.00016647,2]
[378553145,1754911858090,-500.0,0.00016647,2]
[378553147,1754911858100,-502.38606645,0.00016647,2]
[378553149,1754911858109,-500.0,0.00016647,2]
[378553151,1754911858119,-500.0,0.00016647,2]
[378553153,1754911858129,-400.0,0.00016647,2]
[378553155,1754911858138,-1294.81,0.00016647,2]
[378553157,1754911858147,-586.06,0.00016647,2]
[378553159,1754911858157,-3680.3,0.00016647,2]
[378553161,1754911858166,-500.0,0.00016647,2]
[378553163,1754911858176,-586.841379,0.00016647,2]
[378553165,1754911858185,-586.841379,0.00016647,2]
[378553167,1754911858194,-5721.38,0.00016647,2]
[378553169,1754911858207,-1000.0,0.00016647,2]
[378553171,1754911858222,-500.0,0.00016647,2]
[378553173,1754911858231,-2207.09,0.00016647,2]
[378553175,1754911858241,-3185.5,0.00016647,2]
[378553177,1754911858251,-11926.17,0.00016647,2]
[378553179,1754911858260,-2403.28,0.00016647,2]
[378553180,1754911858270,-3030.99,0.00016647,2]
[378553181,1754911858279,-6372.21,0.00016647,2]
[378553182,1754911858287,-2631.86,0.00016647,2]
[378553183,1754911858296,-7452.92547044,0.00016648,2]
[378553184,1754911858306,-151.0,0.00016648,2]
[378553185,1754911858315,-4636.51909,0.00016648,2]
[378553186,1754911858325,-4636.51909,0.00016648,2]
[378553187,1754911858335,-151.0,0.00016648,2]
[378553188,1754911858344,-1182.126922,0.00016648,2]
[378553189,1754911858353,-151.0,0.00016648,2]
[378553190,1754911858362,-1182.126922,0.00016648,2]
[378553191,1754911858372,-402.752787,0.00016648,2]
[378553192,1754911858381,-402.752787,0.00016648,2]
[378553193,1754911858390,-1183.01629,0.00016648,2]
[378553194,1754911858399,-1183.01629,0.00016648,2]
[378553195,1754911858408,-698.232335,0.00016648,2]
[378553196,1754911858418,-698.232335,0.00016648,2]
[378553197,1754911858427,-817.090114,0.00016648,2]
[378553198,1754911858437,-817.090114,0.00016648,2]
[378553199,1754911858446,-1646.262048,0.00016648,2]
[378553200,1754911858456,-1646.262048,0.00016648,2]
[378553201,1754911858465,-151.0,0.00016648,2]
[378553202,1754911858474,-161.82436673,0.00016673,2]